bitfinex/quotes_ETHUSD_20250906
["timestamp","ask_amount","ask_price","bid_price","bid_amount"]
[1757139508750,13.23188014,4297.3,4297.2,5.562]
[1757139510648,12.88158014,4297.3,4297.2,5.562]
[1757139515794,12.11728014,4297.3,4297.2,5.8731]
[1757139515996,12.11728014,4297.3,4297.2,6.7772]
[1757139518168,12.11728014,4297.3,4297.2,6.3222]
[1757139519002,12.31458014,4297.3,4297.2,5.562]
[1757139520101,12.11728014,4297.3,4297.2,5.562]
[1757139520892,12.11793824,4297.3,4297.2,5.562]
[1757139522793,12.11793824,4297.3,4297.2,5.8729]
[1757139523310,12.11793824,4297.3,4297.2,6.3312]
[1757139526090,12.11793824,4297.3,4297.2,5.562]
[1757139528018,12.11793824,4297.3,4297.2,5.8729]
[1757139529126,12.11793824,4297.3,4297.2,6.3312]
[1757139529321,12.11793824,4297.3,4297.2,6.8219]
[1757139530222,12.11793824,4297.3,4297.2,6.3312]
[1757139533996,12.11793824,4297.3,4297.2,5.562]
[1757139534193,12.78083824,4297.3,4297.2,5.562]
[1757139535440,12.11793824,4297.3,4297.2,5.562]
[1757139535935,12.11793824,4297.3,4297.2,6.3312]
[1757139541974,12.11793824,4297.3,4297.2,5.8729]
[1757139542275,12.11793824,4297.3,4297.2,6.3312]
[1757139545651,12.11793824,4297.3,4297.2,5.8729]
[1757139546154,12.11793824,4297.3,4297.2,6.3312]
[1757139547390,7.49853824,4297.3,4297.2,6.8219]
[1757139547589,6.997,4297.3,4297.2,9.14899671]
[1757139547752,6.997,4297.3,4297.2,9.84699659]
[1757139547958,6.997,4297.3,4297.2,7.51989988]
[1757139548372,0.001,4297.3,4297.2,7.51989988]
[1757139548572,0.001,4297.3,4297.2,11.36720097]
[1757139553169,0.001,4297.3,4297.2,9.04010426]
[1757139553572,0.001,4297.3,4297.2,11.36720097]
[1757139554316,0.001,4297.3,4297.2,9.04010426]
[1757139554813,0.001,4297.3,4297.2,8.54940426]
[1757139555173,0.001,4297.3,4297.2,7.02919988]
[1757139555678,0.001,4297.3,4297.2,7.49849988]
[1757139558499,1.4293,4297.3,4297.2,6.25999988]
[1757139558913,1.4293,4297.3,4297.2,6.26099988]
[1757139559090,2.07448,4297.3,4297.2,6.26099988]
[1757139559480,2.07448,4297.3,4297.2,2.40899988]
[1757139559681,2.07448,4297.3,4297.2,6.26099988]
[1757139560491,12.07048,4297.3,4297.2,6.26099988]
[1757139561088,12.07048,4297.3,4297.2,2.40899988]
[1757139561298,7.9020984,4297.3,4297.2,1.711]
[1757139561485,7.9020984,4297.3,4297.2,5.565]
[1757139575597,7.4455984,4297.3,4297.2,5.565]
[1757139577506,14.8980984,4297.3,4297.2,5.565]
[1757139578933,14.4415984,4297.3,4297.2,5.565]
[1757139579509,14.4415984,4297.3,4297.2,5.564]
[1757139579722,14.4415984,4297.3,4297.2,1.711]
[1757139580134,14.4415984,4297.3,4297.2,5.564]
[1757139582817,14.4415984,4297.3,4297.2,1.711]
[1757139583030,14.8961984,4297.3,4297.2,5.564]
[1757139583748,14.4415984,4297.3,4297.2,5.564]
[1757139588619,14.4415984,4297.3,4297.2,5.563]
[1757139591543,6.23509671,4297.2,4297.1,5.351]
[1757139591745,8.42414206,4297.2,4297.1,7.063]
[1757139592658,8.42414206,4297.2,4297.1,10.915]
[1757139595569,3.792,4296.9,4296.8,0.4639]
[1757139595769,11.28057584,4296.9,4296.8,1.716]
[1757139596067,12.57748037,4296.9,4296.8,2.0252]
[1757139596443,12.57748037,4296.9,4296.8,2.4851]
[1757139596644,12.57748037,4296.9,4296.8,6.3371]
[1757139597957,12.57748037,4296.9,4296.8,2.4851]
[1757139598164,12.57748037,4296.9,4296.8,6.3371]
[1757139599270,12.57748037,4296.9,4296.8,6.8058]
[1757139602535,7.48857584,4296.9,4296.8,6.8058]
[1757139602737,0.001,4297.3,4296.8,6.8058]
[1757139602978,0.001,4297.3,4296.9,0.9102]
[1757139603145,0.793,4297.3,4297.0,3.853]
[1757139603346,6.988,4297.5,4297.2,0.3092]
[1757139603576,6.988,4297.5,4297.3,3.853]
[1757139603776,9.988,4297.5,4297.4,1.2194]
[1757139603942,10.78,4297.5,4297.4,4.6231]
[1757139604143,7.78,4297.5,4297.4,4.6231]
[1757139604457,10.78,4297.5,4297.4,5.32119571]
[1757139604957,10.78,4297.5,4297.4,5.77149571]
[1757139606699,10.78,4297.5,4297.4,5.0734]
[1757139607455,10.76425289,4297.5,4297.4,5.0734]
[1757139610084,10.76525289,4297.5,4297.4,5.0734]
[1757139610964,9.97325289,4297.5,4297.4,5.65054957]
[1757139611480,9.97325289,4297.5,4297.4,6.34858193]
[1757139614951,6.97325289,4297.5,4297.4,6.34858193]
[1757139615772,6.97325289,4297.5,4297.4,5.89828193]
[1757139615985,6.97325289,4297.5,4297.4,1.46713236]
[1757139616284,0.908,4297.4,4296.8,1.716]
[1757139616489,0.792,4297.4,4297.0,1.15061683]
[1757139616697,0.792,4297.4,4297.3,0.3101]
[1757139616901,1.254,4297.4,4297.3,3.855]
[1757139617398,0.792,4297.4,4297.3,3.855]
[1757139617585,0.792,4297.4,4297.3,4.1651]
[1757139617802,0.792,4297.4,4297.3,4.6176]
[1757139618788,0.792,4297.4,4297.3,3.855]
[1757139618983,0.792,4297.4,4297.0,1.15061683]
[1757139619183,1.254,4297.4,4297.1,3.855]
[1757139619363,0.792,4297.2,4296.8,1.716]
[1757139619564,0.792,4297.2,4297.1,0.3101]
[1757139619764,0.792,4297.2,4297.1,4.6176]
[1757139620004,0.792,4297.4,4297.1,4.6176]
[1757139620366,1.254,4297.4,4297.2,0.4525]
[1757139620567,1.254,4297.4,4297.3,3.855]
[1757139621315,0.792,4297.4,4297.3,4.1651]
[1757139621501,0.792,4297.4,4297.3,4.6176]
[1757139622330,0.790837,4297.4,4297.3,4.6176]
[1757139622832,0.790837,4297.4,4297.3,4.1651]
[1757139623874,0.790837,4297.4,4297.3,9.5141]
[1757139625194,7.76308989,4297.4,4297.3,9.5141]
[1757139626211,12.24409888,4297.4,4297.3,9.204]
[1757139627211,12.24409888,4297.4,4297.3,5.349]
[1757139627496,12.24409888,4297.4,4297.3,9.203]
[1757139628406,12.7449914,4297.4,4297.3,9.203]
[1757139631379,12.7449914,4297.4,4297.3,5.349]
[1757139631643,12.7449914,4297.4,4297.3,9.202]
[1757139632886,12.7449914,4297.4,4297.3,5.349]
[1757139633092,12.7449914,4297.4,4297.3,9.202]
[1757139633294,12.5486914,4297.4,4297.3,9.202]
[1757139634505,12.7474914,4297.4,4297.3,5.349]
[1757139634731,13.1893914,4297.4,4297.3,9.202]
[1757139639642,12.7474914,4297.4,4297.3,9.202]
[1757139641628,12.7474914,4297.4,4297.3,5.349]
[1757139641832,13.1764914,4297.4,4297.3,9.202]
[1757139642031,15.50347981,4297.4,4297.3,9.202]
[1757139642428,15.50347981,4297.4,4297.3,5.349]
[1757139642627,15.50347981,4297.4,4297.3,9.202]
[1757139642834,13.1764914,4297.4,4297.3,9.202]
[1757139643245,15.50347981,4297.4,4297.3,9.202]
[1757139643434,13.1764914,4297.4,4297.3,9.202]
[1757139644326,15.50347981,4297.4,4297.3,9.202]
[1757139645460,15.50347981,4297.4,4297.3,9.206]
[1757139645961,13.1774914,4297.4,4297.3,9.206]
[1757139646156,12.7484914,4297.4,4297.3,9.206]
[1757139646825,12.0876914,4297.4,4297.3,9.5175]
[1757139647257,12.0876914,4297.4,4297.3,9.9463]
[1757139647660,12.0876914,4297.4,4297.3,9.206]
[1757139647838,12.5459914,4297.4,4297.3,9.206]
[1757139648251,12.7599914,4297.4,4297.3,9.206]
[1757139648769,12.5459914,4297.4,4297.3,9.206]
[1757139651883,12.7599914,4297.4,4297.3,9.206]
[1757139657083,4.96729252,4297.2,4297.1,3.856]
[1757139660345,4.29289252,4297.2,4297.1,4.5963]
[1757139660751,11.26114541,4297.2,4297.1,4.5963]
[1757139660951,12.53834975,4297.2,4297.1,4.5963]
[1757139686044,13.00814975,4297.2,4297.1,3.856]
[1757139688169,13.21844975,4297.2,4297.1,3.856]
[1757139688368,13.21844975,4297.2,4297.1,5.568]
[1757139689042,15.54554646,4297.2,4297.1,1.716]
[1757139689265,10.74825289,4296.7,4296.6,0.004]
[1757139689466,10.74825289,4296.7,4296.6,5.568]
[1757139689467,11.24914541,4296.7,4296.6,5.568]
[1757139689632,11.93144541,4296.7,4296.6,5.568]
[1757139693287,11.71894541,4296.7,4296.6,5.568]
[1757139693582,13.36047213,4296.7,4296.6,5.568]
[1757139693974,13.57077213,4296.7,4296.6,5.568]
[1757139694373,13.36047213,4296.7,4296.6,5.568]
[1757139694682,12.89067213,4296.7,4296.6,5.568]
[1757139695796,13.57077213,4296.7,4296.6,5.568]
[1757139701182,13.06987961,4296.7,4296.6,5.568]
[1757139701379,13.57067679,4296.7,4296.6,5.568]
[1757139701693,13.57067679,4296.7,4296.6,6.2907]
[1757139701694,12.89057679,4296.7,4296.6,6.2907]
[1757139702037,11.24905007,4296.7,4296.6,6.2907]
[1757139715551,11.24905007,4296.7,4296.6,5.568]
[1757139715954,11.70165007,4296.7,4296.6,5.568]
[1757139717031,11.24905007,4296.7,4296.6,5.568]
[1757139718863,11.25005007,4296.7,4296.6,5.857]
[1757139719525,11.70379693,4296.7,4296.6,5.568]
[1757139719827,12.42157662,4296.7,4296.6,5.568]
[1757139721655,13.05807662,4296.7,4296.6,5.568]
[1757139722544,13.05807662,4296.7,4296.6,1.716]
[1757139722768,13.05807662,4296.7,4296.6,5.568]
[1757139722963,13.05807662,4296.7,4296.6,1.716]
[1757139723165,13.05807662,4296.7,4296.6,5.568]
[1757139725750,12.42157662,4296.7,4296.6,5.568]
[1757139726884,12.87417662,4296.7,4296.6,5.568]
[1757139728263,13.05807662,4296.7,4296.6,5.568]
[1757139729456,13.05807662,4296.7,4296.6,1.716]
[1757139729762,13.05807662,4296.7,4296.6,5.568]
[1757139730476,12.87417662,4296.7,4296.6,5.568]
[1757139735824,13.07707662,4296.7,4296.6,5.568]
[1757139736601,12.87417662,4296.7,4296.6,5.568]
[1757139738194,13.07937662,4296.7,4296.6,5.568]
[1757139739214,12.87417662,4296.7,4296.6,5.568]
[1757139740710,12.42157662,4296.7,4296.6,6.3134]
[1757139741293,7.45919693,4296.7,4296.6,6.7639]
[1757139741627,7.45919693,4296.7,4296.6,7.46207044]
[1757139741927,8.25119693,4296.7,4296.6,7.46207044]
[1757139742132,7.45919693,4296.7,4296.6,7.46207044]
[1757139742286,7.74925289,4296.7,4296.6,7.46207044]
[1757139745386,7.74925289,4296.7,4296.6,8.97682972]
[1757139746884,7.74925289,4296.7,4296.6,11.3042514]
[1757139753850,0.001,4296.7,4296.6,11.3042514]
[1757139769081,0.001,4296.7,4296.6,14.3042514]
[1757139775689,0.001,4296.7,4296.6,16.7532514]
[1757139775980,0.001,4296.7,4296.6,14.3042514]
[1757139779778,0.001,4296.7,4296.6,13.8537514]
[1757139780086,0.001,4296.7,4296.6,10.0017514]
[1757139780262,0.001,4296.7,4296.6,13.8517514]
[1757139781680,0.001,4296.7,4296.6,14.3022514]
[1757139782397,0.001,4296.7,4296.6,20.2687514]
[1757139783990,1e-08,4296.7,4296.6,20.2687514]
[1757139787592,0.00100001,4296.7,4296.6,20.2687514]
[1757139788804,0.001,4296.7,4296.6,20.2687514]
[1757139790522,1e-08,4297.3,4297.2,2.32709671]
[1757139790679,1e-08,4297.3,4297.2,6.66479436]
[1757139790880,1e-08,4297.3,4297.2,6.9483234]
[1757139791074,1e-08,4297.3,4297.2,7.4006234]
[1757139791290,1e-08,4297.3,4297.2,7.49367468]
[1757139793001,0.45000001,4297.3,4297.2,6.73457468]
[1757139796702,0.45000001,4297.3,4297.2,12.08157468]
[1757139799713,1e-08,4297.3,4297.2,12.38837468]
[1757139800025,1e-08,4297.3,4297.2,12.84067468]
[1757139800386,1e-08,4297.3,4297.2,12.19757468]
[1757139801183,0.45000001,4297.3,4297.2,12.19757468]
[1757139804125,0.63990001,4297.3,4297.2,11.61614799]
[1757139804498,1.09060001,4297.3,4297.2,11.61614799]
[1757139805436,1.09060001,4297.3,4297.2,5.44005128]
[1757139805437,1.88260001,4297.3,4297.2,5.44005128]
[1757139805590,1.88260001,4297.3,4297.2,9.28905128]
[1757139806911,1.88260001,4297.3,4297.2,11.61614799]
[1757139807715,1.88260001,4297.3,4297.2,9.28905128]
[1757139808446,1.88260001,4297.3,4297.2,5.44005128]
[1757139808615,1.88260001,4297.3,4297.2,9.28905128]
[1757139809126,1.88260001,4297.3,4297.2,5.44005128]
[1757139809304,1.88260001,4297.3,4297.2,9.28905128]
[1757139810331,1.88260001,4297.3,4297.2,5.44005128]
[1757139810541,1.88260001,4297.3,4297.2,9.28905128]
[1757139814040,1.88260001,4297.3,4297.2,11.61614799]
[1757139814904,1.43190001,4297.3,4297.2,11.61614799]
[1757139820376,1.43190001,4297.3,4297.2,7.76714799]
[1757139820556,1.43190001,4297.3,4297.2,9.29005128]
[1757139821079,1.43190001,4297.3,4297.2,11.61714799]
[1757139822287,1.43190001,4297.3,4297.2,9.29005128]
[1757139822581,1.43190001,4297.3,4297.2,11.61714799]
[1757139822781,1.43190001,4297.3,4297.2,9.29005128]
[1757139823374,1.43190001,4297.3,4297.2,11.61714799]
[1757139824385,1.43190001,4297.3,4297.2,9.29005128]
[1757139825081,1.43190001,4297.3,4297.2,11.61714799]
[1757139825584,1.43190001,4297.3,4297.2,9.29005128]
[1757139825759,1.43190001,4297.3,4297.2,11.61714799]
[1757139827248,1.43190001,4297.3,4297.2,9.29005128]
[1757139829669,11.3881529,4297.3,4297.2,9.29005128]
[1757139830347,11.3881529,4297.3,4297.2,11.00105128]
[1757139831079,11.3881529,4297.3,4297.2,13.32814799]
[1757139833654,11.3881529,4297.3,4297.2,11.00105128]
[1757139837810,12.98956819,4297.3,4297.2,7.15105128]
[1757139838008,13.49163761,4297.3,4297.2,11.00105128]
[1757139838401,13.49163761,4297.3,4297.2,10.908]
[1757139839774,13.49163761,4297.3,4297.2,7.058]
[1757139839975,13.49163761,4297.3,4297.2,10.908]
[1757139840176,13.49163761,4297.3,4297.2,7.059]
[1757139841385,13.49163761,4297.3,4297.2,10.909]
[1757139847518,13.49163761,4297.3,4297.2,7.75717857]
[1757139847724,13.49163761,4297.3,4297.2,11.60717857]
[1757139850647,13.49163761,4297.3,4297.2,7.75717857]
[1757139850938,13.49163761,4297.3,4296.7,5.353]
[1757139850939,0.792,4296.8,4296.7,5.353]
[1757139851242,2.40876942,4296.8,4296.7,10.914]
[1757139851535,11.66284374,4296.8,4296.7,10.914]
[1757139856517,11.66101243,4296.8,4296.7,10.914]
[1757139857042,11.21291243,4296.8,4296.7,10.914]
[1757139857206,12.44884599,4296.8,4296.7,10.914]
[1757139860963,12.89694599,4296.8,4296.7,10.914]
[1757139864932,12.44884599,4296.8,4296.7,10.915]
[1757139865133,12.89694599,4296.8,4296.7,10.915]
[1757139865364,17.31968171,4296.8,4296.7,10.915]
[1757139866564,17.31968171,4296.8,4296.7,7.064]
[1757139866765,17.31968171,4296.8,4296.7,10.917]
[1757139869275,17.58533888,4296.8,4296.7,10.917]
[1757139870679,17.58533888,4296.8,4296.7,7.064]
[1757139870886,17.58533888,4296.8,4296.7,10.917]
[1757139871176,17.58533888,4296.8,4296.4,0.004]
[1757139871382,10.01807432,4296.0,4295.8,5.379]
[1757139871538,10.51831243,4296.0,4295.9,2.1607]
[1757139871741,10.51831243,4296.0,4295.9,2.4525]
[1757139872363,10.51831243,4296.0,4295.9,6.3055]
[1757139872569,11.63998851,4296.0,4295.9,6.3055]
[1757139875752,11.63998851,4296.0,4295.9,5.8608]
[1757139875952,11.63998851,4296.0,4295.9,6.3055]
[1757139876362,11.63998851,4296.0,4295.9,5.8608]
[1757139876680,11.63998851,4296.0,4295.9,6.3055]
[1757139877056,11.63998851,4296.0,4295.9,6.3015]
[1757139877265,11.63998851,4296.0,4295.5,0.4545]
[1757139877266,9.24857432,4295.8,4295.5,0.4545]
[1757139877472,9.74881243,4295.8,4295.7,7.067]
[1757139877667,9.74881243,4295.8,4295.7,7.3588]
[1757139878448,9.74881243,4295.8,4295.7,11.2108]
[1757139891423,9.74881243,4295.8,4295.7,10.919]
[1757139892500,10.04921243,4295.8,4295.7,10.919]
[1757139892700,10.97061243,4295.8,4295.7,10.919]
[1757139892900,9.74881243,4295.8,4295.7,10.919]
[1757139893104,9.74881243,4295.8,4295.7,11.2265]
[1757139893618,9.74881243,4295.8,4295.7,10.919]
[1757139894990,11.69260128,4295.8,4295.7,7.067]
[1757139895193,12.16150128,4295.8,4295.7,10.919]
[1757139903757,12.16150128,4295.8,4295.7,10.919]
[1757139904876,10.93970128,4295.8,4295.7,10.919]
[1757139905053,10.93970128,4295.8,4295.7,11.2265]
[1757139907167,10.93970128,4295.8,4295.7,10.919]
[1757139909683,10.94070128,4295.8,4295.7,10.919]
[1757139909883,10.94070128,4295.8,4295.7,11.2265]
[1757139910178,10.94070128,4295.8,4295.7,10.919]
[1757139911777,11.05616802,4295.8,4295.7,10.919]
[1757139913531,11.34796802,4295.8,4295.7,10.919]
[1757139914662,12.28516802,4295.8,4295.7,10.919]
[1757139916851,12.28516802,4295.8,4295.7,7.067]
[1757139916852,14.8786803,4295.8,4295.7,7.067]
[1757139917197,6.22457432,4295.2,4294.8,5.381]
[1757139917506,9.72481243,4295.2,4295.1,5.584]
[1757139917791,10.95381243,4295.2,4295.1,5.584]
[1757139918349,10.51501243,4295.2,4295.1,5.584]
[1757139918555,11.63637445,4295.2,4295.1,5.584]
[1757139918777,10.84617445,4295.2,4295.1,5.584]
[1757139919118,10.84617445,4295.2,4295.1,5.8928]
[1757139919291,10.84617445,4295.2,4295.1,5.8938]
[1757139921505,11.63637445,4295.2,4295.1,5.585]
[1757139921931,11.13797445,4295.2,4295.1,5.585]
[1757139922096,10.84617445,4295.2,4295.1,5.585]
[1757139925201,9.72481243,4295.2,4295.1,5.8938]
[1757139925453,5.93281243,4295.2,4295.1,6.777]
[1757139925817,9.72481243,4295.2,4295.1,6.777]
[1757139927157,9.72481243,4295.2,4295.1,6.781]
[1757139927321,9.72581243,4295.2,4295.1,6.781]
[1757139928820,9.72581243,4295.2,4295.1,5.8978]
[1757139929028,9.72581243,4295.2,4295.1,6.3305]
[1757139931712,9.72581243,4295.2,4295.1,5.8978]
[1757139931919,9.72581243,4295.2,4295.1,6.781]
[1757139932516,9.72581243,4295.2,4295.1,6.3305]
[1757139934149,9.72581243,4295.2,4295.1,5.8978]
[1757139935046,9.72581243,4295.2,4294.8,6.51220044]
[1757139935047,3.0,4295.1,4294.8,0.72750044]
[1757139935362,6.12034291,4294.9,4294.8,1.712]
[1757139935515,8.14707152,4294.9,4294.8,3.726]
[1757139935720,10.23520445,4294.9,4294.8,3.726]
[1757139939832,9.93771395,4294.9,4294.8,3.726]
[1757139940039,7.60937104,4294.9,4294.8,3.726]
[1757139940941,7.84958102,4294.9,4294.8,3.726]
[1757139941373,5.52123811,4294.9,4294.8,3.726]
[1757139942277,7.84958102,4294.9,4294.8,3.726]
[1757139943069,5.52123811,4294.9,4294.8,3.726]
[1757139943649,7.84958102,4294.9,4294.8,3.726]
[1757139943875,9.03459112,4294.9,4294.8,3.726]
[1757139946006,9.03459112,4294.9,4294.8,3.73]
[1757139947509,6.70624821,4294.9,4294.8,3.73]
[1757139947808,9.03459112,4294.9,4294.8,3.73]
[1757139949179,5.41584821,4294.9,4294.8,4.0219]
[1757139949516,0.50023811,4294.9,4294.8,4.9387]
[1757139949715,1.29223811,4294.9,4294.8,4.9387]
[1757139949917,0.50023811,4294.9,4294.8,4.9387]
[1757139950578,0.50023811,4294.9,4294.8,10.2917]
[1757139955693,0.50023811,4294.9,4294.8,9.8591]
[1757139957824,0.50023811,4294.9,4294.8,10.2917]
[1757139958038,6.72481243,4294.9,4294.8,11.32127]
[1757139958186,6.22457432,4294.9,4294.8,11.32127]
[1757139958528,9.22457432,4294.9,4294.8,9.8591]
[1757139958945,9.7251799,4294.9,4294.8,9.8591]
[1757139960016,9.7251799,4294.9,4294.8,9.3749]
[1757139960545,9.7251799,4294.9,4294.8,11.7161]
[1757139960749,9.7251799,4294.9,4294.8,12.1487]
[1757139963420,9.7261799,4294.9,4294.8,12.1487]
[1757139964583,9.7261799,4294.9,4294.8,11.7161]
[1757139967676,6.7261799,4294.9,4294.8,11.7161]
[1757139971892,6.7261799,4294.9,4294.8,11.2319]
[1757139972486,9.7261799,4294.9,4294.8,11.2319]
[1757139975500,9.7261799,4294.9,4294.8,10.94]
[1757139977660,9.7261799,4294.9,4294.8,11.2256]
[1757139977873,9.7261799,4294.9,4294.8,10.94]
[1757139978887,10.0240799,4294.9,4294.8,10.94]
[1757139979100,10.4799799,4294.9,4294.8,10.94]
[1757139982821,9.7261799,4294.9,4294.8,10.94]
[1757139983126,9.7261799,4294.9,4294.8,10.935]
[1757139984121,10.4799799,4294.9,4294.8,10.935]
[1757139985490,10.0240799,4294.9,4294.8,10.935]
[1757139985931,9.7261799,4294.9,4294.8,11.2206]
[1757139986228,9.7261799,4294.9,4294.8,12.1857]
[1757139986932,9.7261799,4294.9,4294.8,11.7115]
[1757139987297,9.7261799,4294.9,4294.8,12.1857]
[1757139988035,0.50160558,4294.9,4294.8,15.73306713]
[1757139988355,0.001,4294.9,4294.8,15.73306713]
[1757139990318,0.001,4294.9,4294.8,13.40467]
[1757139994116,0.001,4294.9,4294.8,15.73306713]
[1757139997431,0.001,4294.9,4294.8,15.84906713]
[1757140003373,0.001,4294.9,4294.8,18.73306713]
[1757140005203,1e-08,4295.4,4295.3,2.32812609]
[1757140005396,1e-08,4295.4,4295.3,9.44921996]
[1757140005582,1e-08,4295.4,4295.3,10.6665387]
[1757140012134,0.001,4296.1,4295.9,2.32780092]
[1757140012331,0.001,4296.1,4295.9,11.15885901]
[1757140012538,0.001,4296.1,4295.9,11.44668101]
[1757140012694,0.001,4296.1,4295.9,12.37618101]
[1757140012896,0.001,4296.5,4296.4,2.32753002]
[1757140013122,0.001,4296.5,4296.4,6.19153002]
[1757140013335,0.001,4296.5,4296.4,7.48178686]
[1757140013633,0.001,4296.5,4296.4,7.92838686]
[1757140013998,0.001,4296.5,4296.4,8.02144485]
[1757140014192,0.001,4296.5,4296.4,7.57484485]
[1757140016846,0.001,4296.5,4296.4,2.91684485]
[1757140016847,1.2602,4296.5,4296.4,2.91684485]
[1757140017004,1.2602,4296.5,4296.4,2.42058801]
[1757140017199,1.2602,4296.5,4296.4,6.28858801]
[1757140021202,0.7847,4296.5,4296.4,6.28858801]
[1757140022917,1.2602,4296.5,4296.4,6.28858801]
[1757140025066,0.7847,4296.5,4296.4,6.28858801]
[1757140025266,0.3152,4296.5,4296.4,6.28858801]
[1757140025642,0.001,4296.5,4296.4,7.15020736]
[1757140025842,0.001,4296.5,4296.4,7.94420736]
[1757140026439,0.001,4296.5,4296.4,8.39080736]
[1757140026644,0.001,4296.5,4296.4,7.94420736]
[1757140026828,0.001,4296.5,4296.4,8.39080736]
[1757140028601,0.001,4296.5,4296.4,11.39080736]
[1757140032846,0.001,4296.5,4296.4,10.94420736]
[1757140033766,0.001,4296.5,4296.4,17.36220736]
[1757140036487,0.001,4296.5,4296.4,17.83560736]
[1757140038581,0.001,4296.5,4296.4,22.71020736]
[1757140040119,0.3032,4296.5,4296.4,21.91620736]
[1757140040621,0.001,4296.5,4296.4,21.91620736]
[1757140040785,0.001,4296.5,4296.4,22.21200736]
[1757140047236,0.001,4296.5,4296.4,21.91620736]
[1757140049638,0.4726725,4296.8,4296.7,2.32736751]
[1757140049817,0.0246725,4296.8,4296.7,11.87275509]
[1757140050021,0.3268725,4296.8,4296.7,11.98875509]
[1757140050405,0.7748725,4296.8,4296.7,11.98875509]
[1757140050709,0.001,4296.9,4296.8,2.32731334]
[1757140050907,0.001,4296.9,4296.8,2.35058647]
[1757140051152,0.001,4296.9,4296.8,2.58339908]
[1757140051506,0.001,4296.9,4296.8,2.56012595]
[1757140052160,0.001,4296.9,4296.8,5.56012595]
[1757140052307,0.001,4296.9,4296.8,5.85592595]
[1757140053150,0.001,4296.9,4296.8,6.02932393]
[1757140054160,1e-08,4297.1,4297.0,2.32720502]
[1757140054359,1e-08,4297.1,4297.0,9.21647707]
[1757140054642,1e-08,4297.1,4297.0,10.54710502]
[1757140055343,1e-08,4297.1,4297.0,10.64015002]
[1757140059177,0.00100001,4297.8,4297.7,2.32682597]
[1757140059328,0.00100001,4297.8,4297.7,7.90282597]
[1757140059647,0.001,4298.0,4297.9,2.32671769]
[1757140059858,0.4562,4298.0,4297.9,6.19171769]
[1757140060048,0.7691,4298.0,4297.9,6.19171769]
[1757140060267,0.7691,4298.0,4297.9,6.8807303]
[1757140060440,0.7414,4298.0,4297.9,6.8807303]
[1757140061179,0.001,4298.0,4297.9,10.1790303]
[1757140063432,0.001,4298.0,4297.9,10.6595303]
[1757140064386,0.001,4298.0,4297.9,11.1059303]
[1757140064955,0.001,4298.0,4297.9,10.6595303]
[1757140065155,0.001,4298.0,4297.9,11.1059303]
[1757140067458,0.001,4298.0,4297.9,13.5549303]
[1757140071178,0.001,4298.0,4297.9,13.1085303]
[1757140073581,0.001,4298.0,4297.9,8.4647303]
[1757140073913,0.4552,4298.4,4298.3,2.32650117]
[1757140074077,0.7681,4298.4,4298.3,6.95481431]
[1757140074278,0.7681,4298.4,4298.3,10.07081431]
[1757140074987,0.001,4298.5,4298.4,2.32644705]
[1757140075312,0.001,4298.5,4298.4,2.79611152]
[1757140075513,0.001,4298.5,4298.4,18.69910531]
[1757140075673,0.001,4298.5,4298.4,18.73464084]
[1757140075880,0.001,4298.5,4298.4,19.29704084]
[1757140077292,0.001,4298.5,4298.4,18.85064084]
[1757140077883,0.2126,4298.5,4298.4,18.55234084]
[1757140078075,0.6678,4298.5,4298.4,18.55234084]
[1757140080004,0.5052,4298.8,4298.7,2.32628469]
[1757140080192,0.05,4298.8,4298.7,11.1320973]
[1757140080518,0.149,4298.8,4298.7,11.2480973]
[1757140080677,0.149,4298.8,4298.7,11.5776973]
[1757140080879,0.6042,4298.8,4298.7,11.5776973]
[1757140086637,0.6042,4298.8,4298.7,11.5756973]
[1757140088148,0.6052,4298.8,4298.7,11.5756973]
[1757140088844,0.15,4298.8,4298.7,11.5756973]
[1757140089215,0.051,4298.8,4298.7,11.5756973]
[1757140092048,0.051,4298.8,4298.7,11.8786973]
[1757140092251,0.051,4298.8,4298.7,12.3235973]
[1757140092545,0.051,4298.8,4298.7,14.7725973]
[1757140092720,0.051,4298.8,4298.7,12.3235973]
[1757140095524,1e-08,4298.8,4298.7,12.3235973]
[1757140095727,10.001,4299.3,4298.8,5.32623057]
[1757140095947,10.001,4299.3,4299.2,2.32601414]
[1757140096253,10.001,4299.3,4299.2,6.18601414]
[1757140096415,10.1,4299.3,4299.2,6.88357744]
[1757140096814,10.5553,4299.3,4299.2,6.88357744]
[1757140098136,10.1,4299.3,4299.2,6.88357744]
[1757140098339,10.001,4299.3,4299.2,7.06102308]
[1757140098853,10.001,4299.3,4299.2,12.40602308]
[1757140099208,10.1023,4299.3,4299.2,12.40602308]
[1757140100007,10.5576,4299.3,4299.2,12.40602308]
[1757140100960,10.5576,4299.3,4299.2,8.36857744]
[1757140101158,10.5576,4299.3,4299.2,12.22757744]
[1757140101313,10.8827,4299.3,4299.2,12.22757744]
[1757140101513,10.5576,4299.3,4299.2,12.22757744]
[1757140103453,10.8827,4299.3,4299.2,8.36857744]
[1757140103657,10.8827,4299.3,4299.2,18.63957744]
[1757140104146,10.5576,4299.3,4299.2,18.63957744]
[1757140105618,10.5553,4299.3,4299.2,18.63957744]
[1757140108379,10.5553,4299.3,4299.2,20.34957744]
[1757140111273,10.8826,4299.3,4299.2,20.34857744]
[1757140113159,10.5553,4299.3,4299.2,16.49157744]
[1757140113369,10.8826,4299.3,4299.2,20.34857744]
[1757140114974,12.77446,4299.3,4299.2,18.0225633]
[1757140115867,12.77446,4299.3,4299.2,18.0235633]
[1757140116579,12.77446,4299.3,4299.2,14.1655633]
[1757140116780,12.77446,4299.3,4299.2,18.0235633]
[1757140122007,12.44716,4299.3,4299.2,18.0235633]
[1757140122160,11.3473,4299.3,4299.2,18.0235633]
[1757140122581,10.793,4299.3,4299.2,20.34957744]